[Event "Titled Tuesday Blitz March 21 Early 2023"]
[White "Mortazavi, Ali"]
[Black "Liyanage, Ranindu Dilshan"]
[WhiteFideId "401323"]
[BlackFideId "9915834"]
[WhiteElo "2339"]
[BlackElo "2199"]
[Result "1-0"]
[Round "03"]
[TimeControl "180+2"]
[Date "2023.03.21"]
[WhiteClock "0:00:04"]
[BlackClock "0:00:05"]

1. e4 {[%clk 0:03:00]}  g6 {[%clk 0:02:56]} 2. d4 {[%clk 0:03:00]}  Bg7 {[%clk 0:02:54]} 3. Nc3 {[%clk 0:03:01]}  d6 {[%clk 0:02:48]} 4. Be3 {[%clk 0:03:01]}  a6 {[%clk 0:02:46]} 5. Qd2 {[%clk 0:03:01]}  b5 {[%clk 0:02:46]} 6. a4 {[%clk 0:03:01]}  b4 {[%clk 0:02:45]} 7. Nce2 {[%clk 0:03:02]}  Bb7 {[%clk 0:02:46]} 8. Ng3 {[%clk 0:03:03]}  a5 {[%clk 0:02:45]} 9. Bd3 {[%clk 0:03:01]}  Nd7 {[%clk 0:02:44]} 10. Nf3 {[%clk 0:03:00]}  c5 {[%clk 0:02:44]} 11. c3 {[%clk 0:03:00]}  Ngf6 {[%clk 0:02:42]} 12. h3 {[%clk 0:03:00]}  O-O {[%clk 0:02:41]} 13. O-O {[%clk 0:03:00]}  Rc8 {[%clk 0:02:37]} 14. Bh6 {[%clk 0:02:54]}  Nb6 {[%clk 0:02:27]} 15. d5 {[%clk 0:02:32]}  e6 {[%clk 0:02:20]} 16. Bxg7 {[%clk 0:02:29]}  Kxg7 {[%clk 0:02:20]} 17. dxe6 {[%clk 0:02:05]}  fxe6 {[%clk 0:02:20]} 18. Rfe1 {[%clk 0:02:04]}  Nfd7 {[%clk 0:02:09]} 19. Bb5 {[%clk 0:01:51]}  Ne5 {[%clk 0:02:01]} 20. Nxe5 {[%clk 0:01:50]}  dxe5 {[%clk 0:02:02]} 21. Qe3 {[%clk 0:01:41]}  Qe7 {[%clk 0:01:47]} 22. Rad1 {[%clk 0:01:39]}  Rf4 {[%clk 0:01:40]} 23. f3 {[%clk 0:01:34]}  Rff8 {[%clk 0:01:25]} 24. Nf1 {[%clk 0:01:31]}  Bc6 {[%clk 0:01:22]} 25. Nh2 {[%clk 0:01:21]}  Bxb5 {[%clk 0:01:16]} 26. axb5 {[%clk 0:01:21]}  h5 {[%clk 0:01:17]} 27. Nf1 {[%clk 0:01:21]}  Qe8 {[%clk 0:01:12]} 28. Qg5 {[%clk 0:01:14]}  Nd7 {[%clk 0:00:59]} 29. Rd6 {[%clk 0:01:01]}  Rf7 {[%clk 0:00:53]} 30. Red1 {[%clk 0:01:00]}  a4 {[%clk 0:00:51]} 31. Ne3 {[%clk 0:00:51]}  bxc3 {[%clk 0:00:38]} 32. bxc3 {[%clk 0:00:50]}  c4 {[%clk 0:00:39]} 33. Ra6 {[%clk 0:00:41]}  Nc5 {[%clk 0:00:15]} 34. Qxe5+ {[%clk 0:00:40]}  Kh7 {[%clk 0:00:14]} 35. Rc6 {[%clk 0:00:24]}  Rxc6 {[%clk 0:00:14]} 36. bxc6 {[%clk 0:00:25]}  Qxc6 {[%clk 0:00:14]} 37. Rd8 {[%clk 0:00:25]}  Rg7 {[%clk 0:00:15]} 38. Qf6 {[%clk 0:00:21]}  Nd7 {[%clk 0:00:13]} 39. Qd4 {[%clk 0:00:17]}  a3 {[%clk 0:00:13]} 40. Qa7 {[%clk 0:00:13]}  Qb6 {[%clk 0:00:11]} 41. Qxb6 {[%clk 0:00:09]}  Nxb6 {[%clk 0:00:11]} 42. Rd2 {[%clk 0:00:09]}  Ra7 {[%clk 0:00:08]} 43. Ra2 {[%clk 0:00:09]}  Ra4 {[%clk 0:00:07]} 44. Nc2 {[%clk 0:00:09]}  Kg7 {[%clk 0:00:08]} 45. Rxa3 {[%clk 0:00:09]}  Kf6 {[%clk 0:00:08]} 46. Kf2 {[%clk 0:00:09]}  Ke5 {[%clk 0:00:08]} 47. Ke3 {[%clk 0:00:09]}  g5 {[%clk 0:00:08]} 48. g3 {[%clk 0:00:09]}  Kd6 {[%clk 0:00:08]} 49. Rxa4 {[%clk 0:00:07]}  Nxa4 {[%clk 0:00:09]} 50. Kd4 {[%clk 0:00:08]}  Nb2 {[%clk 0:00:08]} 51. f4 {[%clk 0:00:07]}  gxf4 {[%clk 0:00:07]} 52. gxf4 {[%clk 0:00:07]}  h4 {[%clk 0:00:07]} 53. Ne3 {[%clk 0:00:08]}  Na4 {[%clk 0:00:04]} 54. Nxc4+ {[%clk 0:00:09]}  Ke7 {[%clk 0:00:05]} 55. Ne3 {[%clk 0:00:06]}  Nb2 {[%clk 0:00:04]} 56. Ng2 {[%clk 0:00:06]}  Nd1 {[%clk 0:00:03]} 57. Nxh4 {[%clk 0:00:06]}  Nf2 {[%clk 0:00:04]} 58. Nf3 {[%clk 0:00:07]}  Nxh3 {[%clk 0:00:04]} 59. c4 {[%clk 0:00:07]}  Nxf4 {[%clk 0:00:04]} 60. c5 {[%clk 0:00:07]}  Kd7 {[%clk 0:00:05]} 61. Ne5+ {[%clk 0:00:05]}  Kc7 {[%clk 0:00:05]} 62. Nd3 {[%clk 0:00:06]}  Ng6 {[%clk 0:00:05]} 63. Ne5 {[%clk 0:00:06]}  Nf4 {[%clk 0:00:05]} 64. Ke3 {[%clk 0:00:06]}  Nh3 {[%clk 0:00:04]} 65. Kf3 {[%clk 0:00:05]}  Ng5+ {[%clk 0:00:04]} 66. Kg4 {[%clk 0:00:04]}  Nh3 {[%clk 0:00:05]} 67. Kxh3 {[%clk 0:00:04]} 1-0


[Site "https://www.chess.com"]

[Event "Titled Tuesday Blitz March 21 Early 2023"]
[White "Horak, Martin"]
[Black "Mindlin, Alon"]
[WhiteFideId "367095"]
[BlackFideId "2800071"]
[WhiteElo "2091"]
[BlackElo "2430"]
[Result "0-1"]
[Round "03"]
[TimeControl "180+2"]
[Date "2023.03.21"]
[WhiteClock "0:00:36"]
[BlackClock "0:01:03"]

1. e4 {[%clk 0:03:00]}  e5 {[%clk 0:02:54]} 2. f4 {[%clk 0:03:00]}  d5 {[%clk 0:02:53]} 3. exd5 {[%clk 0:03:00]}  exf4 {[%clk 0:02:53]} 4. Nf3 {[%clk 0:03:00]}  Nf6 {[%clk 0:02:52]} 5. Bb5+ {[%clk 0:03:00]}  Bd7 {[%clk 0:02:47]} 6. Bxd7+ {[%clk 0:02:56]}  Qxd7 {[%clk 0:02:35]} 7. O-O {[%clk 0:02:55]}  Nxd5 {[%clk 0:02:32]} 8. c4 {[%clk 0:02:53]}  Nf6 {[%clk 0:02:30]} 9. d4 {[%clk 0:02:53]}  Be7 {[%clk 0:02:25]} 10. Bxf4 {[%clk 0:02:51]}  O-O {[%clk 0:02:25]} 11. Nc3 {[%clk 0:02:50]}  Rd8 {[%clk 0:01:48]} 12. Qc2 {[%clk 0:02:34]}  Nc6 {[%clk 0:01:44]} 13. Rad1 {[%clk 0:02:33]}  h6 {[%clk 0:01:38]} 14. a3 {[%clk 0:02:31]}  Bd6 {[%clk 0:01:37]} 15. Ne5 {[%clk 0:02:24]}  Qe8 {[%clk 0:01:23]} 16. Rfe1 {[%clk 0:01:58]}  Bxe5 {[%clk 0:01:22]} 17. Bxe5 {[%clk 0:01:53]}  Nxe5 {[%clk 0:01:22]} 18. Rxe5 {[%clk 0:01:52]}  Qc6 {[%clk 0:01:19]} 19. b3 {[%clk 0:01:41]}  Re8 {[%clk 0:01:13]} 20. Rde1 {[%clk 0:01:40]}  Rxe5 {[%clk 0:01:12]} 21. Rxe5 {[%clk 0:01:41]}  Qd6 {[%clk 0:01:13]} 22. Nb5 {[%clk 0:01:37]}  Qd7 {[%clk 0:01:13]} 23. Qe2 {[%clk 0:01:17]}  c6 {[%clk 0:01:04]} 24. Re7 {[%clk 0:00:48]}  Qd8 {[%clk 0:01:03]} 25. Nc7 {[%clk 0:00:39]}  Qxd4+ {[%clk 0:01:02]} 26. Qe3 {[%clk 0:00:36]}  Qxe3+ {[%clk 0:01:02]} 27. Rxe3 {[%clk 0:00:36]}  Rc8 {[%clk 0:01:03]} 0-1


[Site "https://www.chess.com"]

[Event "Titled Tuesday Blitz March 21 Early 2023"]
[White "Preotu, Razvan"]
[Black "Nguyen Hong Nhung"]
[WhiteFideId "2613280"]
[BlackFideId "12412201"]
[WhiteElo "2407"]
[BlackElo "1904"]
[Result "1-0"]
[Round "03"]
[TimeControl "180+2"]
[Date "2023.03.21"]
[WhiteClock "0:00:17"]
[BlackClock "0:00:34"]

1. e4 {[%clk 0:03:00]}  c5 {[%clk 0:03:00]} 2. Nf3 {[%clk 0:03:00]}  e6 {[%clk 0:02:59]} 3. c3 {[%clk 0:03:00]}  Nf6 {[%clk 0:02:59]} 4. e5 {[%clk 0:03:00]}  Nd5 {[%clk 0:03:00]} 5. d4 {[%clk 0:03:01]}  cxd4 {[%clk 0:03:00]} 6. cxd4 {[%clk 0:03:02]}  d6 {[%clk 0:03:00]} 7. Bc4 {[%clk 0:03:02]}  Be7 {[%clk 0:03:00]} 8. O-O {[%clk 0:03:03]}  O-O {[%clk 0:03:00]} 9. Qe2 {[%clk 0:03:04]}  b6 {[%clk 0:02:59]} 10. Rd1 {[%clk 0:03:02]}  Nc6 {[%clk 0:03:00]} 11. a3 {[%clk 0:02:57]}  Bb7 {[%clk 0:02:55]} 12. Bxd5 {[%clk 0:02:53]}  exd5 {[%clk 0:02:56]} 13. Nc3 {[%clk 0:02:54]}  Na5 {[%clk 0:02:54]} 14. Bf4 {[%clk 0:02:50]}  Rc8 {[%clk 0:02:50]} 15. Nb5 {[%clk 0:02:41]}  Ba6 {[%clk 0:02:42]} 16. a4 {[%clk 0:02:02]}  Qd7 {[%clk 0:02:31]} 17. Re1 {[%clk 0:01:08]}  dxe5 {[%clk 0:02:05]} 18. Nxe5 {[%clk 0:01:08]}  Qf5 {[%clk 0:02:05]} 19. Qf3 {[%clk 0:01:01]}  Nb3 {[%clk 0:01:52]} 20. Qxb3 {[%clk 0:00:54]}  Qxf4 {[%clk 0:01:51]} 21. Nxa7 {[%clk 0:00:42]}  Rc7 {[%clk 0:01:36]} 22. Qxb6 {[%clk 0:00:38]}  Rc2 {[%clk 0:01:33]} 23. Nf3 {[%clk 0:00:36]}  Be2 {[%clk 0:01:29]} 24. Qb3 {[%clk 0:00:30]}  Bxf3 {[%clk 0:01:13]} 25. Qxf3 {[%clk 0:00:31]}  Qxf3 {[%clk 0:01:11]} 26. gxf3 {[%clk 0:00:32]}  Bf6 {[%clk 0:01:10]} 27. Nb5 {[%clk 0:00:31]}  Rxb2 {[%clk 0:01:09]} 28. Reb1 {[%clk 0:00:29]}  Rd2 {[%clk 0:00:57]} 29. a5 {[%clk 0:00:28]}  Rc2 {[%clk 0:00:43]} 30. a6 {[%clk 0:00:28]}  Rcc8 {[%clk 0:00:44]} 31. a7 {[%clk 0:00:28]}  h5 {[%clk 0:00:40]} 32. Rc1 {[%clk 0:00:14]}  Ra8 {[%clk 0:00:34]} 33. Nc7 {[%clk 0:00:14]}  Bxd4 {[%clk 0:00:34]} 34. Nxa8 {[%clk 0:00:11]}  Rxa8 {[%clk 0:00:32]} 35. Ra4 {[%clk 0:00:10]}  Bxa7 {[%clk 0:00:30]} 36. Rca1 {[%clk 0:00:09]}  Bxf2+ {[%clk 0:00:29]} 37. Kxf2 {[%clk 0:00:10]}  Re8 {[%clk 0:00:28]} 38. Ra8 {[%clk 0:00:11]}  Kf8 {[%clk 0:00:28]} 39. Rxe8+ {[%clk 0:00:11]}  Kxe8 {[%clk 0:00:29]} 40. Rd1 {[%clk 0:00:12]}  Ke7 {[%clk 0:00:29]} 41. Rxd5 {[%clk 0:00:13]}  g6 {[%clk 0:00:30]} 42. Ra5 {[%clk 0:00:13]}  Kf6 {[%clk 0:00:31]} 43. h4 {[%clk 0:00:14]}  Kg7 {[%clk 0:00:31]} 44. Ke3 {[%clk 0:00:14]}  Kh6 {[%clk 0:00:32]} 45. f4 {[%clk 0:00:15]}  f6 {[%clk 0:00:32]} 46. Ke4 {[%clk 0:00:16]}  f5+ {[%clk 0:00:32]} 47. Ke5 {[%clk 0:00:16]}  Kg7 {[%clk 0:00:33]} 48. Ra7+ {[%clk 0:00:16]}  Kh6 {[%clk 0:00:33]} 49. Kf6 {[%clk 0:00:17]}  g5 {[%clk 0:00:34]} 50. fxg5# {[%clk 0:00:17]} 1-0


[Site "https://www.chess.com"]

[Event "Titled Tuesday Blitz March 21 Early 2023"]
[White "Manukyan, Sargis A."]
[Black "Pham, Le Thao Nguyen"]
[WhiteFideId "13303970"]
[BlackFideId "12401226"]
[WhiteElo "2187"]
[BlackElo "2282"]
[Result "1-0"]
[Round "03"]
[TimeControl "180+2"]
[Date "2023.03.21"]
[WhiteClock "0:02:30"]
[BlackClock "0:00:13"]

1. d4 {[%clk 0:03:00]}  d5 {[%clk 0:02:55]} 2. c4 {[%clk 0:02:58]}  c6 {[%clk 0:02:55]} 3. Nc3 {[%clk 0:02:59]}  Nf6 {[%clk 0:02:55]} 4. e3 {[%clk 0:02:59]}  a6 {[%clk 0:02:54]} 5. Nf3 {[%clk 0:02:59]}  b5 {[%clk 0:02:54]} 6. b3 {[%clk 0:02:57]}  Bg4 {[%clk 0:02:53]} 7. Qc2 {[%clk 0:02:58]}  Bxf3 {[%clk 0:02:39]} 8. gxf3 {[%clk 0:02:58]}  e6 {[%clk 0:02:39]} 9. f4 {[%clk 0:02:59]}  Nbd7 {[%clk 0:02:28]} 10. c5 {[%clk 0:03:00]}  g6 {[%clk 0:02:24]} 11. a3 {[%clk 0:03:00]}  Bg7 {[%clk 0:02:21]} 12. Bb2 {[%clk 0:03:01]}  Qb8 {[%clk 0:02:08]} 13. Nb1 {[%clk 0:03:01]}  Ne4 {[%clk 0:02:01]} 14. Nd2 {[%clk 0:03:00]}  Nxd2 {[%clk 0:01:58]} 15. Qxd2 {[%clk 0:03:01]}  Qd8 {[%clk 0:01:55]} 16. h4 {[%clk 0:03:01]}  h5 {[%clk 0:01:54]} 17. Bd3 {[%clk 0:03:01]}  Bf6 {[%clk 0:01:51]} 18. O-O-O {[%clk 0:03:02]}  Bxh4 {[%clk 0:01:48]} 19. Qc2 {[%clk 0:03:02]}  Nf8 {[%clk 0:01:45]} 20. e4 {[%clk 0:03:00]}  dxe4 {[%clk 0:01:28]} 21. Bxe4 {[%clk 0:03:00]}  Rc8 {[%clk 0:01:29]} 22. d5 {[%clk 0:02:47]}  Bf6 {[%clk 0:01:10]} 23. dxe6 {[%clk 0:02:45]}  Qe7 {[%clk 0:01:10]} 24. exf7+ {[%clk 0:02:44]}  Kxf7 {[%clk 0:01:09]} 25. Bxf6 {[%clk 0:02:38]}  Qxf6 {[%clk 0:01:07]} 26. Rd6 {[%clk 0:02:38]}  Qxf4+ {[%clk 0:00:48]} 27. Kb1 {[%clk 0:02:36]}  g5 {[%clk 0:00:23]} 28. Re1 {[%clk 0:02:30]}  h4 {[%clk 0:00:18]} 29. Bxc6 {[%clk 0:02:29]}  h3 {[%clk 0:00:15]} 30. Bd5+ {[%clk 0:02:30]}  Kg7 {[%clk 0:00:13]} 31. Re7+ {[%clk 0:02:30]} 1-0


[Site "https://www.chess.com"]

[Event "Titled Tuesday Blitz March 21 Early 2023"]
[White "Villalba, Marcelo"]
[Black "Perez Gormaz, Matias"]
[WhiteFideId "3701859"]
[BlackFideId "3406342"]
[WhiteElo "2191"]
[BlackElo "2362"]
[Result "0-1"]
[Round "03"]
[TimeControl "180+2"]
[Date "2023.03.21"]
[WhiteClock "0:00:05"]
[BlackClock "0:00:30"]

1. e4 {[%clk 0:03:00]}  c5 {[%clk 0:02:58]} 2. Nf3 {[%clk 0:03:00]}  e6 {[%clk 0:02:57]} 3. Nc3 {[%clk 0:02:58]}  a6 {[%clk 0:02:55]} 4. d4 {[%clk 0:02:51]}  cxd4 {[%clk 0:02:54]} 5. Nxd4 {[%clk 0:02:52]}  Qc7 {[%clk 0:02:55]} 6. Bd3 {[%clk 0:02:51]}  Nf6 {[%clk 0:02:54]} 7. O-O {[%clk 0:02:50]}  d6 {[%clk 0:02:55]} 8. f4 {[%clk 0:02:46]}  Nbd7 {[%clk 0:02:50]} 9. Qf3 {[%clk 0:02:39]}  Be7 {[%clk 0:02:49]} 10. Kh1 {[%clk 0:02:36]}  b5 {[%clk 0:02:43]} 11. Bd2 {[%clk 0:02:34]}  Bb7 {[%clk 0:02:42]} 12. Rae1 {[%clk 0:02:33]}  O-O {[%clk 0:02:26]} 13. Qh3 {[%clk 0:02:29]}  Qc5 {[%clk 0:01:58]} 14. e5 {[%clk 0:02:08]}  Qxd4 {[%clk 0:01:55]} 15. exf6 {[%clk 0:01:41]}  Nxf6 {[%clk 0:01:54]} 16. f5 {[%clk 0:01:36]}  e5 {[%clk 0:01:47]} 17. Bg5 {[%clk 0:01:15]}  d5 {[%clk 0:01:34]} 18. a3 {[%clk 0:01:03]}  Rfe8 {[%clk 0:01:23]} 19. Rf3 {[%clk 0:00:29]}  Qg4 {[%clk 0:00:33]} 20. Qxg4 {[%clk 0:00:14]}  Nxg4 {[%clk 0:00:33]} 21. Bxe7 {[%clk 0:00:09]}  Rxe7 {[%clk 0:00:34]} 22. Rg3 {[%clk 0:00:05]}  Nf6 {[%clk 0:00:34]} 23. Rge3 {[%clk 0:00:05]}  Rae8 {[%clk 0:00:33]} 24. R3e2 {[%clk 0:00:05]}  Kf8 {[%clk 0:00:31]} 25. Nd1 {[%clk 0:00:04]}  e4 {[%clk 0:00:31]} 26. c3 {[%clk 0:00:05]}  exd3 {[%clk 0:00:30]} 0-1


[Site "https://www.chess.com"]

[Event "Titled Tuesday Blitz March 21 Early 2023"]
[White "Santos Flores, Alberto"]
[Black "Krysa, Leandro"]
[WhiteFideId "3601234"]
[BlackFideId "116807"]
[WhiteElo "2235"]
[BlackElo "2485"]
[Result "0-1"]
[Round "03"]
[TimeControl "180+2"]
[Date "2023.03.21"]
[WhiteClock "0:00:10"]
[BlackClock "0:00:28"]

1. e4 {[%clk 0:02:59]}  c5 {[%clk 0:03:00]} 2. Nf3 {[%clk 0:02:59]}  Nc6 {[%clk 0:03:00]} 3. Nc3 {[%clk 0:02:58]}  d6 {[%clk 0:03:00]} 4. d4 {[%clk 0:02:56]}  cxd4 {[%clk 0:03:00]} 5. Nxd4 {[%clk 0:02:56]}  Nf6 {[%clk 0:03:01]} 6. Bg5 {[%clk 0:02:54]}  e6 {[%clk 0:03:01]} 7. Bb5 {[%clk 0:02:54]}  Bd7 {[%clk 0:02:57]} 8. Bxc6 {[%clk 0:02:54]}  Bxc6 {[%clk 0:02:52]} 9. Nxc6 {[%clk 0:02:54]}  bxc6 {[%clk 0:02:52]} 10. Qf3 {[%clk 0:02:54]}  h6 {[%clk 0:02:47]} 11. Bxf6 {[%clk 0:02:40]}  Qxf6 {[%clk 0:02:46]} 12. Qxf6 {[%clk 0:02:40]}  gxf6 {[%clk 0:02:47]} 13. f4 {[%clk 0:02:37]}  d5 {[%clk 0:02:44]} 14. O-O-O {[%clk 0:02:29]}  Bb4 {[%clk 0:02:43]} 15. Rhe1 {[%clk 0:02:17]}  O-O-O {[%clk 0:02:33]} 16. a3 {[%clk 0:02:03]}  Bxc3 {[%clk 0:02:26]} 17. bxc3 {[%clk 0:02:04]}  h5 {[%clk 0:02:26]} 18. c4 {[%clk 0:01:55]}  dxe4 {[%clk 0:02:15]} 19. Rxe4 {[%clk 0:01:49]}  h4 {[%clk 0:02:10]} 20. Rxd8+ {[%clk 0:01:44]}  Kxd8 {[%clk 0:02:09]} 21. Re3 {[%clk 0:01:39]}  Rg8 {[%clk 0:02:04]} 22. g3 {[%clk 0:01:39]}  hxg3 {[%clk 0:02:02]} 23. hxg3 {[%clk 0:01:36]}  Rh8 {[%clk 0:02:00]} 24. Kb2 {[%clk 0:01:31]}  Rh1 {[%clk 0:01:55]} 25. Kc3 {[%clk 0:01:26]}  c5 {[%clk 0:01:50]} 26. Kb3 {[%clk 0:01:18]}  Kc7 {[%clk 0:01:49]} 27. Kc3 {[%clk 0:01:12]}  Rg1 {[%clk 0:01:49]} 28. Kb3 {[%clk 0:01:12]}  Rb1+ {[%clk 0:01:41]} 29. Kc3 {[%clk 0:01:05]}  Kc6 {[%clk 0:01:38]} 30. Rf3 {[%clk 0:01:02]}  f5 {[%clk 0:01:31]} 31. Rd3 {[%clk 0:01:00]}  Rg1 {[%clk 0:01:29]} 32. Kb3 {[%clk 0:00:58]}  Rg2 {[%clk 0:01:27]} 33. Re3 {[%clk 0:00:53]}  Kd6 {[%clk 0:01:23]} 34. Rd3+ {[%clk 0:00:53]}  Kc6 {[%clk 0:01:20]} 35. Re3 {[%clk 0:00:53]}  Rd2 {[%clk 0:01:08]} 36. Rd3 {[%clk 0:00:40]}  Re2 {[%clk 0:00:54]} 37. Kc3 {[%clk 0:00:35]}  a5 {[%clk 0:00:52]} 38. Kb3 {[%clk 0:00:32]}  f6 {[%clk 0:00:44]} 39. Rf3 {[%clk 0:00:31]}  Re4 {[%clk 0:00:36]} 40. Kc3 {[%clk 0:00:29]}  a4 {[%clk 0:00:35]} 41. Kd3 {[%clk 0:00:29]}  Rd4+ {[%clk 0:00:35]} 42. Kc3 {[%clk 0:00:29]}  Rd1 {[%clk 0:00:35]} 43. Re3 {[%clk 0:00:28]}  Kd6 {[%clk 0:00:33]} 44. Rd3+ {[%clk 0:00:25]}  Rxd3+ {[%clk 0:00:33]} 45. cxd3 {[%clk 0:00:26]}  e5 {[%clk 0:00:33]} 46. Kd2 {[%clk 0:00:23]}  Ke6 {[%clk 0:00:31]} 47. Ke3 {[%clk 0:00:23]}  Kf7 {[%clk 0:00:31]} 48. Kf3 {[%clk 0:00:20]}  Kg6 {[%clk 0:00:31]} 49. g4 {[%clk 0:00:21]}  fxg4+ {[%clk 0:00:29]} 50. Kxg4 {[%clk 0:00:21]}  f5+ {[%clk 0:00:28]} 51. Kf3 {[%clk 0:00:21]}  exf4 {[%clk 0:00:28]} 52. Kxf4 {[%clk 0:00:21]}  Kf6 {[%clk 0:00:29]} 53. Kf3 {[%clk 0:00:12]}  Ke5 {[%clk 0:00:29]} 54. Ke3 {[%clk 0:00:12]}  f4+ {[%clk 0:00:28]} 55. Kf3 {[%clk 0:00:12]}  Kd4 {[%clk 0:00:27]} 56. Kxf4 {[%clk 0:00:13]}  Kxd3 {[%clk 0:00:28]} 57. Ke5 {[%clk 0:00:10]}  Kxc4 {[%clk 0:00:28]} 58. Ke4 {[%clk 0:00:10]}  Kb3 {[%clk 0:00:28]} 0-1


[Site "https://www.chess.com"]

[Event "Titled Tuesday Blitz March 21 Early 2023"]
[White "HSH1987"]
[Black "Omelja, Artem"]
[BlackFideId "14119846"]
[WhiteElo "2711"]
[BlackElo "2404"]
[Result "0-1"]
[Round "03"]
[TimeControl "180+2"]
[Date "2023.03.21"]
[WhiteClock "0:01:45"]
[BlackClock "0:00:54"]

1. Nf3 {[%clk 0:03:00]}  Nf6 {[%clk 0:03:00]} 2. g3 {[%clk 0:03:00]}  e6 {[%clk 0:03:00]} 3. Bg2 {[%clk 0:03:00]}  d5 {[%clk 0:03:00]} 4. O-O {[%clk 0:03:01]}  Be7 {[%clk 0:03:00]} 5. d3 {[%clk 0:03:01]}  O-O {[%clk 0:03:00]} 6. Bf4 {[%clk 0:02:59]}  c5 {[%clk 0:02:58]} 7. e4 {[%clk 0:02:58]}  dxe4 {[%clk 0:02:54]} 8. dxe4 {[%clk 0:02:56]}  Qxd1 {[%clk 0:02:50]} 9. Rxd1 {[%clk 0:02:57]}  Nxe4 {[%clk 0:02:50]} 10. Ne5 {[%clk 0:02:55]}  Nf6 {[%clk 0:02:49]} 11. Nc3 {[%clk 0:02:53]}  Nbd7 {[%clk 0:02:44]} 12. Nc4 {[%clk 0:02:51]}  Nb6 {[%clk 0:02:38]} 13. Na5 {[%clk 0:02:50]}  Nbd5 {[%clk 0:02:28]} 14. Nxd5 {[%clk 0:02:46]}  exd5 {[%clk 0:02:27]} 15. Bxd5 {[%clk 0:02:44]}  Nxd5 {[%clk 0:02:21]} 16. Rxd5 {[%clk 0:02:45]}  Be6 {[%clk 0:02:21]} 17. Rd2 {[%clk 0:02:43]}  b6 {[%clk 0:02:21]} 18. Nc6 {[%clk 0:02:41]}  Bf6 {[%clk 0:02:21]} 19. Be5 {[%clk 0:02:38]}  Rfc8 {[%clk 0:02:06]} 20. Bxf6 {[%clk 0:02:34]}  Rxc6 {[%clk 0:02:00]} 21. Be5 {[%clk 0:02:33]}  Rac8 {[%clk 0:01:56]} 22. a3 {[%clk 0:02:29]}  b5 {[%clk 0:01:54]} 23. f3 {[%clk 0:02:26]}  f6 {[%clk 0:01:52]} 24. Bc3 {[%clk 0:02:24]}  Kf7 {[%clk 0:01:52]} 25. Rad1 {[%clk 0:02:23]}  h5 {[%clk 0:01:43]} 26. Kf2 {[%clk 0:02:23]}  Bf5 {[%clk 0:01:41]} 27. h4 {[%clk 0:02:20]}  b4 {[%clk 0:01:42]} 28. axb4 {[%clk 0:02:17]}  cxb4 {[%clk 0:01:42]} 29. Bxb4 {[%clk 0:02:16]}  Rxc2 {[%clk 0:01:43]} 30. Bc3 {[%clk 0:02:15]}  Rxd2+ {[%clk 0:01:40]} 31. Rxd2 {[%clk 0:02:16]}  Rc7 {[%clk 0:01:36]} 32. Rd4 {[%clk 0:02:14]}  Rd7 {[%clk 0:01:28]} 33. Ra4 {[%clk 0:02:12]}  Bd3 {[%clk 0:01:27]} 34. Ke3 {[%clk 0:02:09]}  a6 {[%clk 0:01:26]} 35. Kf4 {[%clk 0:02:08]}  Bb5 {[%clk 0:01:24]} 36. Re4 {[%clk 0:02:05]}  Bc6 {[%clk 0:01:23]} 37. Rc4 {[%clk 0:02:04]}  Bb5 {[%clk 0:01:23]} 38. Rc8 {[%clk 0:02:00]}  Kg6 {[%clk 0:01:23]} 39. g4 {[%clk 0:01:58]}  hxg4 {[%clk 0:01:23]} 40. fxg4 {[%clk 0:01:59]}  Kf7 {[%clk 0:01:17]} 41. Rb8 {[%clk 0:01:55]}  Rc7 {[%clk 0:01:14]} 42. Rb6 {[%clk 0:01:52]}  Rc4+ {[%clk 0:01:13]} 43. Kf3 {[%clk 0:01:50]}  Kg6 {[%clk 0:00:57]} 44. h5+ {[%clk 0:01:48]}  Kh7 {[%clk 0:00:54]} 45. Rb7 {[%clk 0:01:45]}  Bc6+ {[%clk 0:00:54]} 0-1


[Site "https://www.chess.com"]

[Event "Titled Tuesday Blitz March 21 Early 2023"]
[White "Ben Artzi, Ido"]
[Black "Larino Nieto, David"]
[WhiteFideId "2810913"]
[BlackFideId "2256444"]
[WhiteElo "2204"]
[BlackElo "2506"]
[Result "0-1"]
[Round "03"]
[TimeControl "180+2"]
[Date "2023.03.21"]
[WhiteClock "0:02:11"]
[BlackClock "0:02:44"]

1. d4 {[%clk 0:03:00]}  e6 {[%clk 0:02:57]} 2. c4 {[%clk 0:03:00]}  d6 {[%clk 0:02:57]} 3. Nc3 {[%clk 0:03:00]}  Ne7 {[%clk 0:02:57]} 4. e4 {[%clk 0:03:00]}  Nd7 {[%clk 0:02:58]} 5. Nf3 {[%clk 0:03:00]}  b6 {[%clk 0:02:59]} 6. Be2 {[%clk 0:03:00]}  Bb7 {[%clk 0:02:59]} 7. O-O {[%clk 0:03:00]}  a6 {[%clk 0:03:00]} 8. Be3 {[%clk 0:03:00]}  h6 {[%clk 0:03:00]} 9. b3 {[%clk 0:02:59]}  g5 {[%clk 0:03:00]} 10. d5 {[%clk 0:02:56]}  e5 {[%clk 0:03:00]} 11. h4 {[%clk 0:02:50]}  Ng6 {[%clk 0:02:56]} 12. hxg5 {[%clk 0:02:45]}  hxg5 {[%clk 0:02:57]} 13. Bxg5 {[%clk 0:02:43]}  Be7 {[%clk 0:02:57]} 14. Bxe7 {[%clk 0:02:41]}  Qxe7 {[%clk 0:02:58]} 15. g3 {[%clk 0:02:41]}  O-O-O {[%clk 0:02:56]} 16. Re1 {[%clk 0:02:18]}  f5 {[%clk 0:02:52]} 17. exf5 {[%clk 0:02:15]}  Qh7 {[%clk 0:02:46]} 18. Kf1 {[%clk 0:02:11]}  Qh3+ {[%clk 0:02:44]} 0-1


[Site "https://www.chess.com"]